Cogmind - Beta 12 @@@ ROGUE MODE // 2023.05.20 @ 20:51:24 Player: Mr Goldstein Result: Destroyed by H-61 Shepherd with Heavy Assault Cannon Performance ------------- Evolutions (3) 1500 Regions Visited (8) 1600 Robots Destroyed (0) 0 Value Destroyed (0) 0 Prototype IDs (1) 20 Alien Tech Used (0) 0 Bonus (1534) 1534 TOTAL SCORE: 4654 Bonus ------- Pacifist 834 Entered Garrisons 200 Entered DSFs 500 Cogmind --------- Core Integrity 0/700 Matter 257/300 Energy 90/100 System Corruption 0% Temperature Cool (0) Movement Rolling (100) Location -7/DSF Parts ------- > --- POWER (1) -------- (None) > --- PROPULSION (6) --- Armored Huge Wheel > --- UTILITY (4) ------ Improved Terrain Scan Processor Improved Terrain Scan Processor Improved Terrain Scan Processor Insulated Plating > --- WEAPON (2) ------- (None) > --- INVENTORY (5) ---- Light Nuclear Core Light Nuclear Core Insulated Plating Peak State ------------ > --- POWER ------------ (None) > --- PROPULSION ------- Armored Huge Wheel > --- UTILITY ---------- Improved Terrain Scan Processor Improved Terrain Scan Processor Improved Terrain Scan Processor Insulated Plating > --- WEAPON ----------- (None) > --- INVENTORY -------- Light Nuclear Core Light Nuclear Core Insulated Plating [Rating: 20] Favorites ----------- Power Heavy Deuterium Engine Engine Heavy Deuterium Engine Propulsion Armored Huge Wheel Wheel Armored Huge Wheel Utility Improved Terrain Scan Processor Processor Improved Terrain Scan Processor Protection Insulated Plating Weapon None Build | -11 -10 -10 -9 -8 -7 -7 -7 -7 ------- Run | Jun Mat Min Mat Mat Fac Gar Fac DSF Slots Evolved 6 | . . . 2 2 2 . . . Power . | . . . . . . . . . Propulsion 4 | . . . 1 2 1 . . . Utility 2 | . . . 1 . 1 . . . Weapon . | . . . . . . . . . Parts Attached 6 | . . . 3 . 1 . . 2 Power 1 | . . . . . 1 . . . Engine 1 | . . . . . 1 . . . Core . | . . . . . . . . . Reactor . | . . . . . . . . . Propulsion 1 | . . . . . . . . 1 Treads . | . . . . . . . . . Leg . | . . . . . . . . . Wheel 1 | . . . . . . . . 1 Hover . | . . . . . . . . . Flight . | . . . . . . . . . Utility 4 | . . . 3 . . . . 1 Device . | . . . . . . . . . Storage . | . . . . . . . . . Processor 3 | . . . 3 . . . . . Hackware . | . . . . . . . . . Protection 1 | . . . . . . . . 1 Artifact . | . . . . . . . . . Weapon . | . . . . . . . . . Energy Gun . | . . . . . . . . . Energy Cannon . | . . . . . . . . . Ballistic Gun . | . . . . . . . . . Ballistic Cannon . | . . . . . . . . . Launcher . | . . . . . . . . . Special Weapon . | . . . . . . . . . Impact Weapon . | . . . . . . . . . Slashing Weapon . | . . . . . . . . . Piercing Weapon . | . . . . . . . . . Special Melee Weapon . | . . . . . . . . . Unidentified Prototypes 1 | . . . . . 1 . . . Parts Lost . | . . . . . . . . . Power . | . . . . . . . . . Propulsion . | . . . . . . . . . Utility . | . . . . . . . . . Weapon . | . . . . . . . . . Highest Loss Streak . | . . . . . . . . . To Critical Strikes . | . . . . . . . . . Average Slot Usage (%) 18 | . . . 24 27 23 23 . 28 Processor 17 | . . . 24 27 23 23 . 23 Naked Turns 110 | . 29 74 7 . . . . . Heaviest Build 3 | . . . . . . . . 3 Greatest Support 28 | 3 3 3 3 3 3 3 3 28 Greatest Overweight (x) . | . . . . . . . . . Average Overweight (x) . | . . . . . . . . . Largest Inventory Capacity 5 | 5 5 5 5 5 5 5 5 5 Average Capacity 5 | 5 5 5 5 5 5 5 5 5 Most Carried 3 | . . . 2 2 2 2 2 3 Average Carried 1 | . . . 1 2 2 2 2 2 Final Capacity 5 | 5 5 5 5 5 5 5 5 5 Final Carried 3 | . . . 2 2 2 2 2 3 Class Distribution -------------------- 100% | Mutant Dominant Class ---------------- Mutant | -10/Materials Mutant | -10/Mines Mutant | -9/Materials Mutant | -8/Materials Mutant | -7/Factory Mutant | -7/Garrison Mutant | -7/Factory Mutant | -7/DSF Resources | -11 -10 -10 -9 -8 -7 -7 -7 -7 ----------- Run | Jun Mat Min Mat Mat Fac Gar Fac DSF Matter Collected 200 | 200 . . . . . . . . Remotely . | . . . . . . . . . Salvage Created . | . . . . . . . . . Parts . | . . . . . . . . . Haulers Intercepted . | . . . . . . . . . Recyclers Shooed . | . . . . . . . . . Parts Field Recycled . | . . . . . . . . . Retrieved Matter . | . . . . . . . . . Parts Self-Destructed . | . . . . . . . . . Prevented . | . . . . . . . . . Kills | -11 -10 -10 -9 -8 -7 -7 -7 -7 ------- Run | Jun Mat Min Mat Mat Fac Gar Fac DSF Combat Hostiles Destroyed . | . . . . . . . . . Classes Destroyed . | . . . . . . . . . Best Kill Streak . | . . . . . . . . . Combat Bots Only . | . . . . . . . . . Max Kills in Single Turn . | . . . . . . . . . Gunslinging . | . . . . . . . . . Exploded . | . . . . . . . . . Melee . | . . . . . . . . . Uniques/NPCs Destroyed . | . . . . . . . . . Combat | -11 -10 -10 -9 -8 -7 -7 -7 -7 -------- Run | Jun Mat Min Mat Mat Fac Gar Fac DSF Damage Taken 1144 | . . 187 92 71 50 627 . 117 Core 1084 | . . 187 92 54 46 588 . 117 Absorbed by Shields 95 | . . . . . . 95 . . Core Remaining (%) 73 | 100 . 25 77 90 . . . . Volleys Fired . | . . . . . . . . . Largest . | . . . . . . . . . Hottest . | . . . . . . . . . Shots Fired . | . . . . . . . . . Gun . | . . . . . . . . . Cannon . | . . . . . . . . . Launcher . | . . . . . . . . . Special . | . . . . . . . . . Kinetic . | . . . . . . . . . Thermal . | . . . . . . . . . Explosive . | . . . . . . . . . Electromagnetic . | . . . . . . . . . Robot Hit Streak . | . . . . . . . . . Robot Miss Streak . | . . . . . . . . . Penetration Max . | . . . . . . . . . Secondary Targets . | . . . . . . . . . Shots Hit Robots . | . . . . . . . . . Core Hits 2 | . . . . . 2 . . . Critical Kills . | . . . . . . . . . Critical Parts Destroyed . | . . . . . . . . . Critical Strikes . | . . . . . . . . . Melee Attacks . | . . . . . . . . . Impact . | . . . . . . . . . Slashing . | . . . . . . . . . Piercing . | . . . . . . . . . Sneak Attacks . | . . . . . . . . . Combat Hostiles . | . . . . . . . . . Follow-up Attacks . | . . . . . . . . . Damage Inflicted 11 | . . . . . 11 . . . Guns . | . . . . . . . . . Cannons . | . . . . . . . . . Explosions . | . . . . . . . . . Melee . | . . . . . . . . . Ramming 11 | . . . . . 11 . . . Kinetic . | . . . . . . . . . Thermal . | . . . . . . . . . Explosive . | . . . . . . . . . Electromagnetic . | . . . . . . . . . Impact . | . . . . . . . . . Slashing . | . . . . . . . . . Piercing . | . . . . . . . . . Highest Corruption . | . . . . . . . . . Average Corruption . | . . . . . . . . . Corruption Purged . | . . . . . . . . . Corruption Blocked . | . . . . . . . . . Overload Shots . | . . . . . . . . . Overflow Damage . | . . . . . . . . . Projectiles . | . . . . . . . . . Explosions . | . . . . . . . . . Melee . | . . . . . . . . . Knockbacks 1 | . . . . . 1 . . . Impact 1 | . . . . . 1 . . . Kinetic . | . . . . . . . . . Secondary . | . . . . . . . . . Self-Inflicted Damage 4 | . . . . . 4 . . . Shots . | . . . . . . . . . Rammed 4 | . . . . . 4 . . . Targets Rammed 4 | . . . . . 4 . . . Kicked . | . . . . . . . . . Crushed . | . . . . . . . . . Highest Temperature . | . . . . . . . . . Average Temperature . | . . . . . . . . . Received Heat Transfer 313 | . . 76 36 9 24 168 . . Siege Activations . | . . . . . . . . . Robots Corrupted . | . . . . . . . . . Combat Hostiles . | . . . . . . . . . Parts Fried . | . . . . . . . . . Impact Corruptions . | . . . . . . . . . Robots Melted . | . . . . . . . . . Combat Hostiles . | . . . . . . . . . Parts Melted . | . . . . . . . . . Heat Transferred . | . . . . . . . . . Parts Sabotaged . | . . . . . . . . . Parts Stolen . | . . . . . . . . . Parts Stripped . | . . . . . . . . . Power Chain Reactions . | . . . . . . . . . Missiles Intercepted . | . . . . . . . . . Alert | -11 -10 -10 -9 -8 -7 -7 -7 -7 ------- Run | Jun Mat Min Mat Mat Fac Gar Fac DSF Peak Influence 137 | . . 45 32 58 86 137 71 53 Initial 71 | . . . 17 13 25 63 71 53 Average 41 | . . 34 24 25 46 84 71 53 Maximum Alert Level . | . . . . . . . . . Low Security (%) 100 | 100 100 100 100 100 100 100 100 100 Level 1 . | . . . . . . . . . Level 2 . | . . . . . . . . . Level 3 . | . . . . . . . . . Level 4 . | . . . . . . . . . Level 5 . | . . . . . . . . . High Security . | . . . . . . . . . Max Security . | . . . . . . . . . Squads Dispatched 1 | . . . . . 1 . . . Investigation 1 | . . . . . 1 . . . Extermination . | . . . . . . . . . Reinforcement . | . . . . . . . . . Assault . | . . . . . . . . . Garrison . | . . . . . . . . . Intercept . | . . . . . . . . . Searches Triggered . | . . . . . . . . . Construction Impeded . | . . . . . . . . . Haulers Reinforced . | . . . . . . . . . Active Scanning Responses . | . . . . . . . . . Cargo Convoy Interrupts . | . . . . . . . . . Stealth | -11 -10 -10 -9 -8 -7 -7 -7 -7 --------- Run | Jun Mat Min Mat Mat Fac Gar Fac DSF Distress Signals 3 | . . . 1 1 1 . . . Communications Jammed . | . . . . . . . . . Distress Signals . | . . . . . . . . . Times Spotted 57 | . . 15 6 11 9 14 . 2 Peak Tracking Total 16 | . . 16 6 11 9 12 . 1 Tactical Retreats 6 | . . 2 . . 1 2 . 1 Traps | -11 -10 -10 -9 -8 -7 -7 -7 -7 ------- Run | Jun Mat Min Mat Mat Fac Gar Fac DSF Traps Triggered 3 | . . . . . . 3 . . Indirectly . | . . . . . . . . . Trap Hack Attempts . | . . . . . . . . . Triggered . | . . . . . . . . . Disarmed . | . . . . . . . . . Reprogrammed . | . . . . . . . . . Reused . | . . . . . . . . . Traps Extracted . | . . . . . . . . . Installed . | . . . . . . . . . Triggered . | . . . . . . . . . Machines | -11 -10 -10 -9 -8 -7 -7 -7 -7 ---------- Run | Jun Mat Min Mat Mat Fac Gar Fac DSF Machines Disabled . | . . . . . . . . . Max in Single Turn . | . . . . . . . . . Machines Repaired . | . . . . . . . . . Machines Sabotaged . | . . . . . . . . . Overloaded Fab Kills . | . . . . . . . . . Hacking | -11 -10 -10 -9 -8 -7 -7 -7 -7 --------- Run | Jun Mat Min Mat Mat Fac Gar Fac DSF Machines Accessed 5 | . . . . . 3 1 1 . Terminals 3 | . . . . . 1 1 1 . Fabricators 1 | . . . . . 1 . . . Repair Stations . | . . . . . . . . . Recycling Units . | . . . . . . . . . Scanalyzers . | . . . . . . . . . Garrison Access 1 | . . . . . 1 . . . Total Hacks 9 | . . . . . 6 1 2 . Successful 5 | . . . . . 3 1 1 . Failed 4 | . . . . . 3 . 1 . Catastrophic . | . . . . . . . . . Database Lockouts . | . . . . . . . . . Manual 2 | . . . . . 2 . . . Terminals 4 | . . . . . 1 1 2 . Fabricators 3 | . . . . . 3 . . . Repair Stations . | . . . . . . . . . Recycling Units . | . . . . . . . . . Scanalyzers . | . . . . . . . . . Garrison Access 2 | . . . . . 2 . . . Terminal Hacks 3 | . . . . . 1 1 1 . Robot Schematic 1 | . . . . . 1 . . . Open DSF 1 | . . . . . . . 1 . Emergency Access Points 1 | . . . . . . 1 . . Fabricator Hacks 1 | . . . . . 1 . . . Network Status 1 | . . . . . 1 . . . Repair Station Hacks . | . . . . . . . . . Recycling Unit Hacks . | . . . . . . . . . Scanalyzer . | . . . . . . . . . Garrison Access Hacks 1 | . . . . . 1 . . . Unlock Access 1 | . . . . . 1 . . . Unauthorized Hacks . | . . . . . . . . . Terminals . | . . . . . . . . . Fabricators . | . . . . . . . . . Repair Stations . | . . . . . . . . . Recycling Units . | . . . . . . . . . Scanalyzers . | . . . . . . . . . Garrison Access . | . . . . . . . . . Data Cores Recovered . | . . . . . . . . . Used . | . . . . . . . . . Hacking Detections 3 | . . . . . 2 1 . . Full Trace Events 1 | . . . . . 1 . . . Feedback Events . | . . . . . . . . . Feedback Blocked . | . . . . . . . . . Robot Schematics Acquired 1 | . . . . . 1 . . . Robots Built . | . . . . . . . . . Authchips . | . . . . . . . . . Time . | . . . . . . . . . Total Robot Build Rating . | . . . . . . . . . Part Schematics Acquired . | . . . . . . . . . Parts Built . | . . . . . . . . . Authchips . | . . . . . . . . . Time . | . . . . . . . . . Total Part Build Rating . | . . . . . . . . . Parts Repaired . | . . . . . . . . . Time . | . . . . . . . . . Parts Recycled . | . . . . . . . . . Recycled Matter . | . . . . . . . . . Retrieved Matter . | . . . . . . . . . Retrieved Components . | . . . . . . . . . Parts Scanalyzed . | . . . . . . . . . Part Schematics Acquired . | . . . . . . . . . Parts Damaged . | . . . . . . . . . Bothacking | -11 -10 -10 -9 -8 -7 -7 -7 -7 ------------ Run | Jun Mat Min Mat Mat Fac Gar Fac DSF Used RIF Installer . | . . . . . . . . . Robots Hacked . | . . . . . . . . . Non-combat . | . . . . . . . . . Combat . | . . . . . . . . . Robot Hacks Applied . | . . . . . . . . . Relay Couplers Released . | . . . . . . . . . Fabnet Peak Effective % . | . . . . . . . . . Robots Rewired . | . . . . . . . . . Allies Hacked . | . . . . . . . . . Hacks Repelled . | . . . . . . . . . Allies | -11 -10 -10 -9 -8 -7 -7 -7 -7 -------- Run | Jun Mat Min Mat Mat Fac Gar Fac DSF Total Allies . | . . . . . . . . . Largest Group . | . . . . . . . . . Highest-Rated Group . | . . . . . . . . . Highest-Rated Ally . | . . . . . . . . . Total Orders . | . . . . . . . . . Ally Attacks . | . . . . . . . . . Total Damage . | . . . . . . . . . Kills . | . . . . . . . . . Allies Corrupted . | . . . . . . . . . Allies Melted . | . . . . . . . . . Intel | -11 -10 -10 -9 -8 -7 -7 -7 -7 ------- Run | Jun Mat Min Mat Mat Fac Gar Fac DSF Robot Analysis Total . | . . . . . . . . . Derelict Logs Recovered 1 | . . 1 . . . . . . Drone Launches . | . . . . . . . . . Drone Recoveries . | . . . . . . . . . Exploration | -11 -10 -10 -9 -8 -7 -7 -7 -7 ------------- Run | Jun Mat Min Mat Mat Fac Gar Fac DSF Turns Passed 403 | 15 29 74 49 38 92 67 2 37 Spaces Moved 738 | 31 57 147 85 76 172 103 3 64 Core 737 | 31 57 147 85 76 172 103 3 63 Treads . | . . . . . . . . . Legs . | . . . . . . . . . Wheels 1 | . . . . . . . . 1 Hover . | . . . . . . . . . Flight . | . . . . . . . . . Fastest Speed 50 | 50 50 50 50 50 50 50 50 50 Average Speed 50 | 50 50 50 50 50 50 50 50 50 Slowest Speed 100 | 50 50 50 50 50 50 50 50 100 Overloaded Moves . | . . . . . . . . . Propulsion Burnouts . | . . . . . . . . . Robots Hopped . | . . . . . . . . . Cave-ins Triggered . | . . . . . . . . . Exploration Rate (%) 26 | 3 17 58 14 20 9 27 . 60 Regions Visited 8 Branch Regions 1 Pre-discovered Areas . | . . . . . . . . . Known Exits Taken 2 | . . . . . 1 . 1 . Unknown Exits Taken 5 | 1 1 1 1 1 . . . . Scrap Searched . | . . . . . . . . . Spaces Dug . | . . . . . . . . . Terrain Destroyed . | . . . . . . . . . Melee . | . . . . . . . . . Projectile . | . . . . . . . . . AOE . | . . . . . . . . . Terrain Rammed . | . . . . . . . . . Walls Destroyed . | . . . . . . . . . Machines Disabled . | . . . . . . . . . Actions | -11 -10 -10 -9 -8 -7 -7 -7 -7 --------- Run | Jun Mat Min Mat Mat Fac Gar Fac DSF Total 759 | 30 56 146 89 75 177 117 2 67 Wait . | . . . . . . . . . Move 730 | 30 56 146 84 75 171 102 2 64 Hop . | . . . . . . . . . Pick Up 3 | . . . 2 . . . . 1 Fast Attach 6 | . . . 3 . 1 . . 2 Attach . | . . . . . . . . . Detach . | . . . . . . . . . Swap . | . . . . . . . . . Drop 1 | . . . . . 1 . . . Fire . | . . . . . . . . . Melee . | . . . . . . . . . Ram 4 | . . . . . 4 . . . Kick . | . . . . . . . . . Crush . | . . . . . . . . . Escape Stasis 15 | . . . . . . 15 . . Rewire . | . . . . . . . . . Trap . | . . . . . . . . . Miscellaneous . | . . . . . . . . . Route ------- -11/Junkyard -10/Materials -10/Mines -9/Materials -8/Materials -7/Factory -7/Garrison -7/Factory -7/DSF (discovered 1 exit: [*Fac]) History --------- Turn | Location | Event 3 | -11/Junkyard | Discovered new exit (range 16) 16 | -11/Junkyard | Entered Materials 37 | -10/Materials | Discovered new exit (range 16) 45 | -10/Materials | Entered Mines 58 | -10/Mines | Assembled infested the area 98 | -10/Mines | Core integrity fell below 50% 103 | -10/Mines | Learned Materials emergency access door positions 114 | -10/Mines | Discovered new exit (range 10) 119 | -10/Mines | Entered Materials 119 | -9/Materials | Evolved 2 slots: Propulsion x1, Utility x1 165 | -9/Materials | Discovered new exit (range 7) 168 | -9/Materials | Entered another Materials area 168 | -8/Materials | Evolved 2 slots: Propulsion x2 200 | -8/Materials | Discovered new exit (range 13) 206 | -8/Materials | Entered Factory 206 | -7/Factory | Evolved 2 slots: Propulsion x1, Utility x1 298 | -7/Factory | Identified exit to Garrison 298 | -7/Factory | Entered Garrison 308 | -7/Garrison | Triggered checkpoint 309 | -7/Garrison | Build established: Mutant 319 | -7/Garrison | Core integrity fell below 50% 336 | -7/Garrison | Triggered checkpoint 357 | -7/Garrison | Discovered new exit (range 15) 360 | -7/Garrison | Core integrity fell below 20% 365 | -7/Garrison | Entered Factory 367 | -7/Factory | Identified exit to DSF 367 | -7/Factory | Entered DSF 388 | -7/DSF | Discovered new exit (range 12) 404 | -7/DSF | Destroyed by H-61 Shepherd with Heavy Assault Cannon Last Messages --------------- 00336_ Beams of light sweep through the air. An alarm sounds. 00352_ Connecting with Garrison Terminal... >>Access(Emergency) Found 79 emergency access points. Map updated. 00357_ EXIT=FOUND LOCATION=UNKNOWN GOAL=ESCAPE 00367_ Connecting with DSF Access... 00367_ Current location identified: Factory >>Open(DSF) DSF access unlocked. 00367_ EXIT=UNLOCKED: DSF LOCATION=DSF AMBIENT_HEAT=-10 GOAL=ESCAPE 00372_ Acquired Insulated Plating. 00387_ Knocked back. 00388_ EXIT=FOUND 00401_ Acquired Arm. Huge Wheel. Map ----- +----------------------------------------------------+ | ???????## ###??????????????????????????????????? | | ???????# #??????????????????????????????????? | | ???????# #??????????????????????????????????? | | ???????# #??????????????????????????????????? | | ??????### ######???????????????????????????????? | | ??????# % #? #??!#???????????????????????????? | | ??????# ## #!!!## ?????????????????????????? | | ??????#!! ???????????????????????? | | ??????#!! ???????????????????????? | | ??????#!! ???????????????????????? | | ??????#!! ## #]]]## ??????????????????????? | | ??????#!! #? #??]#??H #?????????????????????? | | ??????### ######?????# ##????????????????????? | | ???????#! #????????! !!????????????????????? | | ???????#! #????????! !?????????????????????? | | ???????#! #????????! !?????????????????????? | | ???????## ###???????## ###???????????????????? | | ???????#! !!#????????! #???????????????????? | | ???????#! !!#????????! #???????????????????? | | ???????## ##########?! ???##???????????????? | | ??????### ### #!!!#?# #??? #??#????????????? | | ?????##"" ## #!!!### ### #!!##???????????? | | ????""""" ???????????? | | ????"##""< ????????????? | | ??????#"""""##!!#!!!#!!=== #???????????????????? | | ??????#"""""#########!! @= #???????????????????? | | ??????####"##???????#########???????????????????? | | ?????????#"#????????????????????????????????????? | | ?????????""#????????????????????????????????????? | | ????????????????????????????????????????????????? | | ????????????????????????????????????????????????? | | ????????????????????????????????????????????????? | | ????????????????????????????????????????????????? | | ????????????????????????????????????????????????? | | | | | | | | | | | | | | | | | | | | | | | | | | | | | | | | | +----------------------------------------------------+ Best States ------------- Heat Dissipation 34 Energy Generation 5 Energy Capacity 100 Matter Stores 300 Matter Capacity 300 Sight Range 16 Terrain Scan Density 310 Armor Coverage 150 Resistance: EM 15 Evasion (%) 50 Item Schematics ----------------- None Robot Schematics ------------------ C-17 Slicer | -7/Factory | Hacked Fabricated ------------ Nothing Alien Tech Used ----------------- None Achievements -------------- None Challenges ------------ None Game ------ Seed DeliveryCloakingChronowheel Manual? 0 Play Time 00:05:29 Cumulative 227.9 hours Start 2023.05.20 @ 20:46:19 End 2023.05.20 @ 20:51:24 Sessions 1 Manual Loads 0 Difficulty Rogue Special Mode None Game No. 695 Rogue 695 Adventurer 0 Explorer 0 Win Type - Total 10 Types 8/0/1/1/0/0/0/0/0 Lore% 83 Gallery% 82 Achievement% 72 Wizard Run 0 Options --------- ASCII 0 Keyboard 0 Movement Numpad Keybinds 0 Fullscreen 1 Font 16/SmallcapsGlow Map View 75x55 Tactical HUD 1 Map Filters NONE Filters NONE Steam 1 RUN: 019edd11-1446-43b5-973b-98cc4ac41296